bitfinex/quotes_ETHUSD_20260313
["timestamp","ask_amount","ask_price","bid_price","bid_amount"]
[1773440259901,2.81839482,2088.8,2088.2,3.227]
[1773440260088,2.81839482,2088.7,2088.2,3.227]
[1773440260286,1.68383201,2089.0,2088.2,3.227]
[1773440260479,2.81775319,2088.9,2088.2,3.227]
[1773440260674,2.81775319,2088.8,2088.3,1.197146]
[1773440260986,0.48708716,2089.2,2088.4,0.51722163]
[1773440261306,2.81767119,2089.1,2088.4,0.51722163]
[1773440261603,0.48708716,2089.2,2088.4,0.51722163]
[1773440261912,0.48708716,2089.2,2088.4,0.46933809]
[1773440262113,0.48708716,2089.1,2088.4,0.46933809]
[1773440262317,0.48708716,2089.1,2088.3,1.197146]
[1773440263615,0.48708716,2089.0,2088.3,1.197146]
[1773440267138,0.48708716,2089.0,2088.2,3.227]
[1773440267139,0.45843249,2088.9,2088.2,3.227]
[1773440268029,0.45843249,2088.9,2088.3,1.699]
[1773440268030,0.45843249,2088.7,2088.3,1.699]
[1773440268191,0.45843249,2088.7,2087.5,4.79022105]
[1773440268615,0.45843249,2088.7,2088.3,0.0011]
[1773440268918,0.45843249,2089.3,2088.3,0.46120741]
[1773440269285,0.45843249,2089.3,2088.4,3.231]
[1773440269925,0.45843249,2089.3,2088.4,3.69110741]
[1773440270327,1.65506231,2089.3,2088.5,1.19703136]
[1773440271313,0.46819385,2089.2,2088.5,1.19703136]
[1773440272837,1.66482633,2089.2,2088.5,1.19703136]
[1773440273219,0.46819385,2089.2,2088.5,1.19703136]
[1773440274527,1.66482762,2089.2,2088.5,1.19703136]
[1773440275029,1.66482762,2089.2,2088.5,1.68192341]
[1773440275641,0.46819385,2089.1,2088.6,1.686]
[1773440276313,0.46819385,2089.1,2088.3,1.19823699]
[1773440276509,0.46819385,2088.9,2088.3,0.0011]
[1773440277540,0.46819385,2088.9,2088.4,1.694]
[1773440278269,0.46819385,2088.9,2088.0,0.0011]
[1773440278935,0.46819385,2088.7,2088.0,1.1984052]
[1773440279136,0.46819385,2088.7,2088.0,1.68329725]
[1773440279664,0.46819385,2088.7,2088.1,1.673]
[1773440280376,1.19677974,2089.0,2088.2,0.48489205]
[1773440280844,1.66497359,2089.0,2088.2,0.48489205]
[1773440281039,1.66497359,2089.0,2088.3,1.197146]
[1773440281435,0.46819385,2088.9,2088.0,0.48599205]
[1773440281638,0.46819385,2088.9,2088.1,1.684]
[1773440283068,1.66505329,2088.8,2088.4,0.0011]
[1773440284762,1.19683722,2088.9,2088.4,0.0011]
[1773440285658,1.66593682,2089.1,2088.4,0.48599205]
[1773440286685,0.46919385,2089.1,2088.4,0.48599205]
[1773440286869,0.001,2089.1,2088.4,0.48599205]
[1773440287703,0.001,2089.1,2088.5,1.68192341]
[1773440290192,0.001,2089.1,2088.5,1.19703136]
[1773440290495,0.001,2089.1,2088.6,0.48489205]
[1773440292099,0.001,2089.1,2088.7,1.19691674]
[1773440292291,0.001,2089.1,2088.8,1.712]
[1773440292493,0.46919385,2089.1,2088.8,1.712]
[1773440294096,0.001,2089.1,2088.8,2.90884686]
[1773440294292,0.001,2089.1,2088.8,3.39373891]
[1773440295392,0.001,2089.1,2088.8,2.19689205]
[1773440295727,0.001,2089.1,2088.8,1.712]
[1773440296411,0.001,2089.1,2088.8,2.90885482]
[1773440298001,1.19748769,2089.5,2088.9,0.48489205]
[1773440298199,0.46919385,2089.5,2088.9,1.68165862]
[1773440298414,0.46919385,2089.5,2089.0,1.721]
[1773440301327,0.49769882,2089.3,2089.0,1.721]
[1773440302133,1.19651574,2089.4,2088.3,0.0011]
[1773440302134,0.49769882,2089.1,2088.3,0.0011]
[1773440302423,0.49769882,2089.1,2088.1,0.0011]
[1773440302424,0.49769882,2088.8,2088.0,0.0011]
[1773440302603,0.49769882,2088.8,2088.0,1.2133]
[1773440303431,0.49769882,2088.6,2088.1,1.699]
[1773440304497,0.49769882,2088.6,2088.2,1.21]
[1773440305626,1.19703136,2088.5,2088.2,1.21]
[1773440305928,1.69473018,2088.5,2088.2,1.21]
[1773440307446,0.49769882,2088.4,2088.2,1.21]
[1773440307648,0.49769882,2088.4,2088.3,1.71]
[1773440307856,0.49769882,2088.4,2088.2,1.2122]
[1773440308255,0.49769882,2088.4,2088.0,0.0011]
[1773440308463,0.49769882,2088.3,2087.7,0.07862456]
[1773440309129,0.49769882,2088.3,2087.4,0.0011]
[1773440309535,0.49769882,2088.1,2087.4,0.0011]
[1773440310633,0.49769882,2088.1,2087.5,1.632]
[1773440312845,1.69501682,2088.0,2087.9,0.0011]
[1773440313152,0.49769882,2087.9,2087.5,1.632]
[1773440313336,0.49769882,2087.9,2087.5,1.655]
[1773440314772,1.69513152,2087.8,2087.5,1.655]
[1773440317173,1.69513859,2087.8,2087.5,1.655]
[1773440318679,1.69513859,2087.8,2087.4,0.0011]
[1773440318887,1.69513859,2087.8,2087.5,1.681]
[1773440319379,0.49769882,2087.8,2087.5,1.681]
[1773440320364,0.49769882,2088.4,2087.5,1.681]
[1773440320685,0.49769882,2088.4,2087.6,0.04790189]
[1773440321376,0.49769882,2088.2,2087.5,2.87859565]
[1773440323870,1.19726066,2088.1,2087.5,3.34876985]
[1773440324071,1.69495948,2088.1,2087.5,3.34876985]
[1773440325003,1.69495948,2088.1,2087.7,0.0011]
[1773440325300,0.001,2088.0,2087.7,0.0011]
[1773440325688,0.49869882,2088.0,2087.8,1.696]
[1773440326082,1.69603958,2088.0,2087.8,1.696]
[1773440326670,0.001,2088.0,2087.8,1.696]
[1773440327797,0.001,2088.0,2087.8,2.89342088]
[1773440328385,0.001,2088.0,2087.8,1.696]
[1773440328696,0.001,2088.0,2087.8,2.89343058]
[1773440329099,0.001,2088.0,2087.8,1.696]
[1773440329612,1.68267832,2088.2,2087.8,1.696]
[1773440330581,0.48546821,2088.1,2087.9,1.698]
[1773440331286,1.19680214,2088.9,2088.0,0.46826567]
[1773440331605,0.47851064,2088.8,2088.0,0.46826567]
[1773440331783,0.47851064,2088.8,2088.0,0.52826567]
[1773440331983,1.19678617,2089.0,2088.0,0.52826567]
[1773440332202,1.19675277,2089.0,2088.0,0.52826567]
[1773440332576,1.19675277,2089.0,2088.2,0.46826567]
[1773440332799,1.67523161,2089.1,2088.2,0.46826567]
[1773440332998,0.47851064,2089.0,2088.2,0.46826567]
[1773440334704,0.47851064,2089.0,2088.3,1.66541167]
[1773440334705,1.67531278,2088.9,2088.3,1.66541167]
[1773440335209,0.47851064,2088.8,2088.1,1.66550555]
[1773440336085,0.47851064,2088.8,2088.2,0.46826567]
[1773440336693,1.67527385,2089.0,2088.4,0.46826567]
[1773440338523,0.001,2088.8,2088.4,0.46826567]
[1773440338687,0.001,2088.8,2088.4,1.66531883]
[1773440339925,0.001,2088.8,2088.5,1.713]
[1773440340527,0.001,2088.8,2088.5,2.18126567]
[1773440342821,0.001,2088.8,2088.5,3.37829683]
[1773440343208,4.78730286,2089.3,2088.6,0.46826567]
[1773440343209,0.001,2089.3,2088.6,0.46826567]
[1773440343412,0.001,2089.3,2088.2,1.6654201]
[1773440343413,0.47851064,2089.2,2088.2,1.6654201]
[1773440343730,0.47851064,2089.2,2088.3,2.18426567]
[1773440345136,0.47851064,2089.0,2088.4,1.19708868]
[1773440346512,0.47851064,2089.0,2088.3,3.38136455]
[1773440347241,1.67531278,2088.9,2088.3,3.38136455]
[1773440347941,1.67531278,2088.9,2088.4,0.46826567]
[1773440349522,1.67531278,2088.9,2088.4,1.6653341]
[1773440351123,1.67531278,2088.9,2088.5,0.0011]
[1773440351318,1.67531278,2088.9,2088.5,0.04898125]
[1773440352169,1.67531278,2088.9,2088.5,0.51724692]
[1773440352334,0.47851064,2088.8,2088.5,0.04898125]
[1773440352536,0.47851064,2088.8,2088.5,0.0011]
[1773440353561,0.47851064,2088.8,2088.3,3.38247907]
[1773440353562,0.47851064,2088.7,2088.3,0.0011]
[1773440353862,0.47851064,2088.7,2088.6,1.717]
[1773440354059,0.47851064,2088.7,2088.3,0.0011]
[1773440354431,1.19689725,2088.8,2088.0,0.0611]
[1773440354432,1.87962331,2088.5,2088.0,0.0611]
[1773440354634,0.47851064,2088.4,2087.8,0.0011]
[1773440354937,0.47851064,2088.4,2087.8,1.19962795]
[1773440355134,0.47851064,2088.6,2087.9,0.51616068]
[1773440355334,0.47851064,2088.6,2088.0,2.11226567]
[1773440355534,1.43959903,2088.7,2088.1,1.71338624]
[1773440355734,1.43959903,2088.7,2088.2,0.0011]
[1773440356970,1.43959903,2088.7,2087.8,0.0011]
[1773440356971,0.52640121,2088.6,2087.8,0.0011]
[1773440357264,0.52640121,2088.6,2087.5,0.0011]
[1773440357265,0.47851064,2088.5,2087.5,0.0011]
[1773440358057,0.47851064,2088.3,2087.5,0.0011]
[1773440358463,0.47851064,2088.3,2087.6,1.618]
[1773440360376,0.47851064,2088.1,2087.6,1.618]
[1773440362882,1.69419525,2088.0,2087.6,1.618]
[1773440364800,1.74208582,2088.0,2087.6,1.618]
[1773440365765,1.74208582,2088.0,2087.8,0.0011]
[1773440366093,1.24520857,2088.0,2087.8,0.0011]
[1773440366266,1.69405669,2088.3,2087.8,0.46617453]
[1773440366457,0.001,2088.1,2087.8,0.46617453]
[1773440367684,0.001,2088.1,2087.8,1.66358627]
[1773440367888,0.24388134,2088.4,2087.9,0.46507453]
[1773440368093,1.19709711,2088.4,2087.9,0.46507453]
[1773440369865,1.69397436,2088.4,2087.9,0.46507453]
[1773440370068,1.69397436,2088.4,2087.9,1.66244373]
[1773440370461,1.69397436,2088.4,2087.9,0.46507453]
[1773440370791,0.49687725,2088.3,2088.0,1.689]
[1773440371465,0.49687725,2088.1,2088.0,1.689]
[1773440372371,1.69406955,2088.3,2088.0,1.689]
[1773440373071,1.69406955,2088.3,2087.8,0.0011]
[1773440374094,1.69406955,2088.3,2087.8,0.46617453]
[1773440374385,1.1971923,2088.3,2087.9,1.655]
[1773440374592,1.1971923,2088.3,2087.9,2.12007453]
[1773440375512,5.2852413,2088.4,2087.9,2.12007453]
[1773440375990,1.4330707,2088.5,2088.0,0.46507453]
[1773440376178,1.43307196,2088.5,2088.0,0.46507453]
[1773440376781,0.49687725,2088.6,2088.0,0.46507453]
[1773440376983,1.19696961,2088.7,2088.0,0.46507453]
[1773440378802,1.19696961,2088.7,2088.2,0.46507453]
[1773440379410,0.49687725,2088.4,2087.9,1.655]
[1773440380514,0.49687725,2088.4,2088.1,0.0011]
[1773440380810,0.001,2088.1,2087.9,1.655]
[1773440381007,1.19826066,2088.1,2087.9,1.6561]
[1773440383482,1.69513791,2088.1,2087.8,0.0011]
[1773440384913,1.19707485,2088.5,2088.0,0.46507453]
[1773440386116,1.19697404,2088.6,2088.1,0.45285833]
[1773440387212,1.69382157,2088.7,2088.1,0.45285833]
[1773440388415,1.9330995,2088.7,2088.1,1.65009536]
[1773440389729,1.9330995,2088.7,2088.2,0.45285833]
[1773440389730,1.69382157,2088.7,2088.2,0.45285833]
[1773440389931,1.19694432,2088.7,2088.2,0.45285833]
[1773440390334,1.19681218,2088.9,2088.3,0.45285833]
[1773440390528,0.48309929,2088.8,2088.4,1.687]
[1773440392418,1.67998647,2088.8,2088.4,1.687]
[1773440392635,1.19775753,2089.0,2088.5,0.45865659]
[1773440392834,1.19778029,2089.0,2088.5,0.45865659]
[1773440393148,1.44053933,2089.0,2088.5,0.45865659]
[1773440394048,1.19778029,2089.0,2088.5,0.45865659]
[1773440394626,1.19778029,2089.0,2088.5,1.65567582]
[1773440396747,1.19778029,2089.0,2088.6,0.45865659]
[1773440397044,0.001,2089.0,2088.6,0.45865659]
[1773440397219,0.001,2089.0,2088.6,1.65561543]
[1773440398443,0.001,2089.0,2088.6,0.45865659]
[1773440399521,0.45352039,2089.0,2088.6,0.45865659]
[1773440400749,0.001,2089.0,2088.6,0.45865659]
[1773440400937,0.001,2089.0,2088.5,1.19700176]
[1773440401138,0.45352039,2089.0,2088.5,1.19700176]
[1773440401342,0.45352039,2089.0,2088.4,3.34269921]
[1773440401538,0.45352039,2089.0,2088.5,0.45865659]
[1773440401737,0.001,2089.0,2088.5,0.45865659]
[1773440402050,5.7774271,2089.3,2088.8,0.45865659]
[1773440402051,1.19759704,2089.3,2088.8,0.45865659]
[1773440402225,1.19759704,2089.3,2088.8,0.45785659]
[1773440404426,1.65011743,2089.3,2088.8,0.45785659]
[1773440406653,0.45252039,2089.2,2088.8,0.45785659]
[1773440407272,0.45252039,2089.2,2088.6,0.45865659]
[1773440407471,0.001,2089.1,2088.6,0.45865659]
[1773440409293,0.45352039,2089.1,2088.6,1.65562284]
[1773440409662,0.45352039,2089.1,2088.7,0.45865659]
[1773440410293,0.45352039,2089.1,2088.5,0.45865659]
[1773440410294,0.45252039,2088.9,2088.5,0.45865659]
[1773440411493,1.19685944,2088.8,2088.6,1.707]
[1773440412171,1.19685944,2088.8,2088.5,0.45865659]
[1773440412896,1.19685944,2088.8,2087.9,4.78949386]
[1773440412897,0.45252039,2088.3,2087.5,0.0011]
[1773440413208,0.45252039,2087.6,2087.2,0.0011]
[1773440413492,1.19777692,2087.2,2086.6,0.45975659]
[1773440413698,1.19777692,2087.2,2086.9,0.0033]
[1773440414782,1.19777692,2087.2,2087.0,1.667]
[1773440415099,2.71319068,2087.7,2087.0,1.667]
[1773440415100,1.19760211,2087.6,2087.0,0.45865659]
[1773440415485,1.19760211,2087.6,2087.1,0.45865659]
[1773440416377,1.19752657,2087.7,2087.1,0.45865659]
[1773440416683,1.19752657,2087.7,2087.2,2.13265659]
[1773440417274,4.78904632,2088.1,2087.2,2.13265659]
[1773440417275,4.78941116,2088.0,2087.3,0.45865659]
[1773440417479,0.45252039,2087.9,2087.3,0.45865659]
[1773440418269,0.45252039,2087.9,2087.3,1.65637239]
[1773440418702,1.197318,2088.0,2087.4,0.45865659]
[1773440420001,1.197318,2088.0,2087.4,1.65630732]
[1773440420404,0.45252039,2087.9,2087.3,0.0011]
[1773440420716,0.45252039,2087.8,2087.0,0.0011]
[1773440420914,0.45252039,2087.6,2087.0,0.0011]
[1773440422115,1.19760479,2087.5,2087.0,0.0011]
[1773440422298,1.19760479,2087.5,2087.1,1.656]
[1773440422699,1.68962112,2087.5,2087.1,1.656]
[1773440423320,0.49201633,2087.4,2087.1,1.656]
[1773440423518,0.49201633,2087.4,2087.0,0.0011]
[1773440424411,1.19771954,2087.3,2087.0,0.0011]
[1773440425194,1.19771954,2087.3,2087.1,1.669]
[1773440426119,1.19771954,2087.3,2087.0,0.0011]
[1773440426319,1.19771954,2087.3,2086.9,0.0011]
[1773440426502,5.28289449,2087.4,2086.9,0.0011]
[1773440427322,0.49201633,2087.6,2086.9,0.45495068]
[1773440427633,4.78996024,2087.8,2086.9,0.45495068]
[1773440428038,4.78996024,2087.8,2087.1,0.45385068]
[1773440429095,5.03314596,2087.8,2087.2,0.45385068]
[1773440429730,4.85459051,2088.1,2087.2,0.45385068]
[1773440429731,4.78927203,2088.1,2087.2,0.45385068]
[1773440430053,5.28128836,2088.1,2087.0,1.663]
[1773440430199,0.49201633,2087.4,2086.8,0.0011]
[1773440431932,1.68973587,2087.3,2086.9,1.644]
[1773440433115,1.68973587,2087.3,2086.8,0.0011]
[1773440433313,4.79012835,2087.7,2087.0,0.45495068]
[1773440434038,4.79012835,2087.7,2087.1,0.50176405]
[1773440434843,5.02456745,2087.7,2087.1,0.50176405]
[1773440435051,5.02456745,2087.7,2087.2,1.627]
[1773440435351,1.69050639,2087.8,2087.3,0.45385068]
[1773440435352,1.19847828,2087.8,2087.3,0.45385068]
[1773440436225,0.001,2087.8,2087.3,0.45385068]
[1773440436431,0.001,2087.8,2087.3,1.65156144]
[1773440436827,1.19736458,2088.0,2087.4,0.45385068]
[1773440437347,4.78888123,2088.2,2087.4,0.45385068]
[1773440437553,1.6891946,2088.3,2087.4,0.45385068]
[1773440438726,1.6891946,2088.3,2087.6,0.45385068]
[1773440439529,1.19717827,2088.3,2087.6,0.45385068]
[1773440440350,1.6891946,2088.3,2087.6,0.45385068]
[1773440440563,1.6891946,2088.3,2086.5,7.16056002]
[1773440440564,0.49201633,2088.2,2087.1,0.45385068]
[1773440440751,1.68927699,2088.1,2087.3,0.45385068]
[1773440442859,1.68927699,2088.1,2087.3,1.65155697]
[1773440443561,1.68927699,2088.1,2087.3,1.19770629]
[1773440443748,1.68927699,2088.1,2087.4,0.45385068]
[1773440446086,1.19726066,2088.1,2087.5,0.5235697]
[1773440446470,0.001,2087.9,2087.5,0.5235697]
[1773440446841,0.001,2087.9,2087.7,0.47566551]
[1773440447850,0.001,2087.9,2087.7,0.52356511]
[1773440448263,0.001,2087.9,2087.7,0.47566551]
[1773440450089,4.78835484,2088.4,2087.8,0.52356281]
[1773440450386,1.19708868,2088.4,2087.7,0.47566551]
[1773440450558,1.19708868,2088.4,2087.8,1.675]
[1773440450559,0.49917873,2088.3,2087.8,1.675]
[1773440451190,0.49917873,2088.3,2087.5,0.47566551]
[1773440451898,0.49917873,2088.3,2087.3,2.03227923]
[1773440452076,0.47857215,2088.1,2087.3,2.03227923]
[1773440452383,0.47857215,2088.1,2087.4,1.672]
[1773440453990,1.67589015,2088.0,2087.4,1.672]
[1773440454390,0.47857215,2087.9,2087.4,1.672]
[1773440456565,1.1974327,2087.8,2087.4,1.672]
[1773440457488,5.2671922,2088.3,2087.5,0.45327923]
[1773440457689,5.2671922,2088.3,2087.7,0.45327923]
[1773440457900,0.47857215,2088.2,2087.7,0.45327923]
[1773440458604,1.19726066,2088.1,2087.7,0.45327923]
[1773440459317,1.19726066,2088.1,2087.7,0.45437923]
[1773440459708,1.19826066,2088.1,2087.7,0.45437923]
[1773440460015,0.001,2088.1,2087.8,0.0478973]
[1773440461409,0.001,2088.1,2087.7,0.45437923]
[1773440462788,0.47857215,2088.0,2087.8,1.684]
[1773440462993,0.47857215,2088.0,2087.1,1.65218924]
[1773440463209,0.47857215,2088.0,2087.2,0.5033903]
[1773440463210,1.19737535,2087.9,2087.2,0.5033903]
[1773440463523,0.47857215,2087.4,2086.8,0.0011]
[1773440463685,0.47857215,2087.4,2086.8,0.45437923]
[1773440464090,0.47857215,2087.4,2086.9,1.70791796]
[1773440465323,1.19771954,2087.3,2086.9,1.70791796]
[1773440465547,1.67625894,2087.4,2086.9,1.70791796]
[1773440465710,1.67625894,2087.4,2086.9,1.71121796]
[1773440466355,1.88149712,2087.0,2086.4,0.0011]
[1773440466517,0.47857215,2087.3,2085.7,5.0401]
[1773440466518,0.47857215,2086.4,2085.9,1.666]
[1773440466726,0.47857215,2086.1,2085.7,0.0011]
[1773440467017,0.47857215,2086.1,2085.3,0.45327923]
[1773440467216,0.47857215,2086.1,2085.3,0.45987923]
[1773440467419,1.67703602,2086.1,2085.4,1.19881077]
[1773440468031,1.67703602,2086.1,2085.5,1.628]
[1773440469221,1.67703602,2086.1,2085.6,0.0066]
[1773440471153,0.47857215,2086.0,2085.6,0.0066]
[1773440471443,1.6770637,2086.0,2085.6,0.0044]
[1773440471840,0.47857215,2086.3,2085.7,0.0044]
[1773440472137,0.47857215,2086.3,2085.6,0.0044]
[1773440472566,0.47857215,2086.3,2085.7,0.0044]
[1773440472730,0.47857215,2086.3,2085.8,1.63]
[1773440473238,0.47857215,2086.3,2085.7,0.0011]
[1773440473546,0.47857215,2086.3,2085.7,0.0055]
[1773440473954,0.47857215,2086.1,2085.7,0.0055]
[1773440474259,0.47857215,2086.1,2085.8,1.634]
[1773440474762,1.19835106,2086.2,2085.8,1.6384]
[1773440474930,1.1983331,2086.3,2085.8,1.6351]
[1773440475136,1.1983331,2086.3,2085.9,0.0044]
[1773440476062,1.91859058,2086.4,2085.9,0.0044]
[1773440476270,1.91859058,2086.4,2086.0,0.0044]
[1773440476573,1.91859058,2086.4,2085.9,0.0044]
[1773440476574,0.05991468,2086.3,2085.9,0.0044]
[1773440478167,1.25821425,2086.3,2085.9,0.0044]
[1773440478467,1.25821425,2086.3,2085.9,0.0055]
[1773440478666,1.25821425,2086.3,2085.9,0.0044]
[1773440478867,1.25821425,2086.3,2085.9,0.0055]
[1773440479268,0.05991468,2086.3,2085.9,0.0055]
[1773440479657,0.05991468,2086.3,2085.9,0.0011]
[1773440479988,0.47857215,2086.7,2086.0,0.45877923]
[1773440480169,0.05990606,2086.6,2086.2,0.45327923]
[1773440480369,0.05990319,2086.7,2086.2,0.45327923]
[1773440480568,0.05990319,2086.7,2086.3,0.0055]
[1773440480770,0.05990032,2086.8,2086.3,0.0055]
[1773440481074,0.05990032,2086.8,2086.4,0.0055]
[1773440481275,0.34840585,2087.1,2086.4,0.49087738]
[1773440481477,0.34840585,2087.1,2086.2,2.6108157]
[1773440481478,1.54624635,2087.1,2086.7,0.0011]
[1773440481682,1.54624635,2087.1,2086.8,1.639]
[1773440481683,0.03592871,2087.0,2086.8,1.639]
[1773440481864,0.03592871,2087.0,2086.9,1.638]
[1773440482191,0.03592871,2087.0,2086.4,0.49087738]
[1773440482192,1.23382042,2087.0,2086.7,0.0011]
[1773440482691,1.23382042,2087.0,2086.8,0.0011]
[1773440482867,1.23382042,2087.0,2086.6,0.0044]
[1773440483188,0.03592871,2087.0,2086.7,0.0011]
[1773440483368,0.03592871,2087.0,2086.8,1.64]
[1773440483567,0.03592871,2087.0,2086.9,0.0011]
[1773440483766,0.34840585,2087.1,2086.9,0.0011]
[1773440484095,0.34840585,2087.1,2087.0,0.0055]
[1773440484283,0.34840585,2087.1,2086.9,0.0044]
[1773440484677,0.34840585,2087.1,2087.0,0.0055]
[1773440484868,0.34840585,2087.1,2087.0,0.0011]
[1773440486491,0.34840585,2087.1,2087.0,0.0055]
[1773440489681,1.54624016,2087.1,2087.0,0.0011]
[1773440489993,0.34840585,2087.1,2086.9,0.0011]
[1773440490170,0.34840585,2087.1,2087.0,0.0044]
[1773440491097,0.34840585,2087.1,2087.0,1.6484]
[1773440492298,1.54624356,2087.1,2086.9,0.0011]
[1773440492504,2.01055542,2087.1,2086.9,0.0011]
[1773440492869,0.81271771,2087.1,2086.9,0.0011]
[1773440493205,0.03592871,2087.0,2086.9,0.0011]
[1773440493565,0.03592871,2087.0,2086.9,1.6541]
[1773440493985,1.1958664,2086.9,2086.6,0.0011]
[1773440494192,0.03592871,2086.8,2086.6,0.0011]
[1773440494471,1.1958664,2086.9,2086.6,0.0011]
[1773440495593,2.3938656,2086.9,2086.7,1.65]
[1773440498872,2.85817746,2086.9,2086.6,0.0011]
[1773440499195,0.46431186,2086.8,2086.6,0.0011]
[1773440499374,0.46431186,2086.8,2086.2,1.68922442]
[1773440500598,1.19806392,2086.7,2086.3,1.631]
[1773440500903,0.03592871,2086.8,2086.4,0.53880682]
[1773440501076,1.19789171,2087.0,2086.4,0.53880682]
[1773440501695,1.69813228,2087.0,2086.4,0.49087738]
[1773440502526,0.46431186,2086.9,2086.4,0.49087738]
[1773440502719,1.23393522,2086.8,2086.4,1.68911226]
[1773440503923,0.03592871,2086.8,2086.5,0.49087738]
[1773440504630,0.46431186,2086.7,2085.9,1.6893769]
[1773440504799,0.46431186,2086.5,2085.9,1.19851232]
[1773440505196,0.46431186,2086.5,2085.9,1.6893897]
[1773440505854,1.19812134,2086.6,2085.5,0.0011]
[1773440505855,0.46431186,2086.2,2085.5,0.0011]
[1773440506004,0.46431186,2086.2,2085.6,1.644]
[1773440506202,0.46431186,2086.2,2085.5,0.0011]
[1773440506728,0.48104205,2086.0,2085.5,0.0011]
[1773440507729,0.48104205,2086.0,2085.6,1.631]
[1773440507923,0.48104205,2086.0,2085.5,0.0011]
[1773440509004,1.67956546,2085.9,2085.5,0.0011]
[1773440509628,1.67956546,2085.9,2085.6,1.639]
[1773440509804,1.67956546,2085.9,2085.5,0.0011]
[1773440509805,1.19771202,2085.6,2085.5,0.0011]
[1773440511840,1.19771202,2085.6,2085.5,1.6451]
[1773440515234,0.47561964,2085.5,2085.2,0.0011]
[1773440515627,1.19881077,2085.4,2085.2,0.0011]
[1773440516029,0.23503588,2085.9,2085.2,0.4717902]
[1773440516030,1.19862671,2085.8,2085.2,0.4717902]
[1773440516342,0.47561964,2085.7,2085.2,0.4717902]
[1773440516823,1.23455542,2085.8,2085.2,0.4717902]
[1773440517027,1.23455542,2085.8,2085.3,1.658]
[1773440517232,1.71017506,2085.8,2085.3,1.658]
[1773440518837,0.03592871,2085.8,2085.4,0.4706902]
[1773440519014,1.23453608,2085.8,2085.4,0.4706902]
[1773440519844,0.03592871,2085.8,2085.4,0.4706902]
[1773440520219,0.03592871,2085.9,2085.4,0.4706902]
[1773440520417,1.43569123,2086.3,2085.5,0.46613345]
[1773440520736,1.67396069,2086.3,2085.5,0.46613345]
[1773440521045,1.67396069,2086.3,2085.6,1.66482926]
[1773440521624,1.67396069,2086.3,2085.2,0.0011]
[1773440521625,0.47561964,2086.2,2085.2,1.66611141]
[1773440521825,3.08393246,2086.3,2085.7,1.665]
[1773440521826,0.47561964,2085.9,2085.7,1.665]
[1773440522014,0.47561964,2085.9,2085.2,0.0011]
[1773440523046,1.19858088,2085.8,2084.8,3.24625709]
[1773440523233,1.19858088,2085.8,2084.9,0.51409738]
[1773440523437,1.67420052,2085.8,2084.9,0.51409738]
[1773440523637,1.67420052,2085.8,2085.1,0.46613345]
[1773440523638,0.47561964,2085.7,2085.1,0.46613345]
[1773440525161,1.19869581,2085.6,2085.2,0.46613345]
[1773440525532,1.19869581,2085.6,2085.5,0.0011]
[1773440525732,0.47561964,2085.9,2085.5,0.0011]
[1773440526035,0.001,2086.1,2085.5,0.46723345]
[1773440526036,1.67506162,2086.1,2085.5,0.46723345]
[1773440528253,0.001,2086.1,2085.7,0.46613345]
[1773440528457,0.001,2086.1,2085.8,1.66]
[1773440529155,1.19941245,2086.1,2085.8,1.66]
[1773440529658,0.47561964,2086.0,2085.5,0.0011]
[1773440530362,1.19852341,2085.9,2085.5,0.0011]
[1773440530560,0.47561964,2085.7,2085.2,0.0011]
[1773440532733,1.19788421,2085.3,2085.2,0.0011]
[1773440534372,0.47561964,2085.2,2084.3,0.46723345]
[1773440534573,1.19788421,2085.3,2084.5,0.46723345]
[1773440534747,1.19788421,2085.3,2084.7,0.46723345]
[1773440534944,1.19788421,2085.3,2084.8,0.51519968]
[1773440535477,1.19788421,2085.3,2084.9,0.51519738]
[1773440536664,1.19788421,2085.3,2085.1,0.46723345]
[1773440536859,1.19788421,2085.3,2085.2,2.16319048]
[1773440537569,1.19788421,2085.3,2085.2,2.11523345]
[1773440538170,1.19874279,2085.6,2085.2,2.11523345]
[1773440538858,5.27017667,2085.7,2085.2,2.11523345]
[1773440539978,4.79308547,2086.4,2085.3,0.46723345]
[1773440539979,1.6740856,2086.0,2085.3,0.46723345]
[1773440540204,1.19846596,2086.0,2085.3,0.51518818]
[1773440540403,0.47561964,2085.9,2085.3,0.51518818]
[1773440540776,0.47561964,2085.9,2085.3,0.46723345]
[1773440541104,1.67418024,2085.9,2085.4,1.19881077]
[1773440542297,5.0315987,2086.0,2085.5,0.46723345]
[1773440542298,0.23765915,2086.0,2085.5,0.46723345]
[1773440542595,0.001,2086.1,2085.5,0.46723345]
[1773440543368,0.001,2086.1,2085.7,0.46723345]
[1773440544196,0.001,2086.1,2085.8,1.66]
[1773440544396,0.001,2086.1,2085.8,2.12723345]
[1773440544776,0.001,2086.1,2085.6,1.19869581]
[1773440544983,0.001,2086.1,2085.7,1.661]
[1773440545693,0.001,2086.1,2085.8,1.19858088]
[1773440546401,0.001,2086.1,2085.7,3.32682962]
[1773440547405,0.001,2086.1,2085.3,1.581]
[1773440547406,0.49358103,2086.1,2085.3,0.46723345]
[1773440547593,0.49258103,2085.9,2085.3,1.66609592]
[1773440548813,0.49258103,2085.9,2085.4,1.664]
[1773440549488,1.19858088,2085.8,2085.4,1.664]
[1773440551306,1.69116191,2085.8,2085.4,1.664]
[1773440551486,0.49358103,2085.7,2085.1,0.0011]
[1773440551688,0.49258103,2085.5,2085.1,0.0011]
[1773440552598,0.49258103,2085.5,2085.2,1.6]
[1773440553006,1.19869581,2085.6,2085.2,1.6]
[1773440556320,1.19964215,2085.7,2085.3,0.46723345]
[1773440556509,0.001,2085.7,2085.3,0.46723345]
[1773440557032,0.001,2085.7,2085.2,1.6]
[1773440557223,0.001,2085.7,2085.2,2.79890395]
[1773440557426,0.001,2085.7,2085.3,0.51518818]
[1773440558105,0.001,2085.7,2085.4,0.51518588]
[1773440558301,1.69202968,2086.1,2085.4,0.46723345]
[1773440558534,1.69202968,2086.1,2085.4,1.66602159]
[1773440558705,1.69202968,2086.1,2085.5,0.46723345]
[1773440559628,0.49258103,2086.0,2085.3,0.04795473]
[1773440559816,1.19944865,2086.1,2085.1,0.0011]
[1773440559817,0.49258103,2085.9,2085.1,0.0011]
[1773440560015,0.49258103,2085.8,2085.1,0.0011]
[1773440560726,0.49258103,2085.6,2085.1,0.0011]
[1773440560920,0.49258103,2085.6,2085.2,1.621]
[1773440562952,1.69128817,2085.6,2085.2,1.621]